[Event "22nd ETCC Women 2019"]
[Site "Batumi"]
[Date "2019.10.24"]
[Round "1.22"]
[White "Injac, Teodora"]
[Black "Bejatovic, Bojana"]
[Result "1-0"]
[ECO "A05"]
[WhiteElo "2257"]
[BlackElo "2004"]
[Annotator "NA"]
[PlyCount "39"]
[EventDate "2019.10.24"]
[EventType "team-tourn"]
[EventCountry "GEO"]
[SourceTitle "playchess.com"]
[Source "ChessBase"]
[SourceQuality "1"]
[WhiteTeam "Serbia"]
[BlackTeam "Macedonia"]
[WhiteTeamCountry "SRB"]
[BlackTeamCountry "MKD"]
[TimeControl "40/5400+30:1800+30"]

1. Nf3 {[%emt 0:00:00]} Nf6 {[%emt 0:00:00]} 2. g3 {[%emt 0:00:39]} g6 {[%emt 0:00:00]} 3. Bg2 {[%emt 0:01:02]} Bg7 {[%emt 0:00:00]} 4. O-O {[%emt 0:00:58]} O-O {[%emt 0:00:20]} 5. d4 {[%emt 0:03:08]} d6 {[%emt 0:01:26]} 6. Re1 {[%emt 0:03:29]} Nbd7 {[%emt 0:01:10]} 7. e4 {[%emt 0:03:54]} e5 {[%emt 0:02:09]} 8. Nc3 {[%emt 0:00:27]} c6 {[%emt 0:08:45]} 9. a4 {[%emt 0:01:19]} a5 {[%emt 0:03:28]} 10. h3 {[%emt 0:03:49]} Rb8 11. d5 {[%emt 0:25:16]} Nc5 {[%emt 0:11:58]} 12. Nd2 {[%emt 0:03:24]} Ne8 {[%emt 0:09:44]} 13. Nc4 {[%emt 0:01:52]} f5 {[%emt 0:21:48]} 14. exf5 {[%emt 0:02:33]} gxf5 {[%emt 0:04:58]} 15. Be3 {[%emt 0:05:28]} f4 {[%emt 0:08:51]} 16. Bxc5 {[%emt 0:01:23]} dxc5 {[%emt 0:00:06]} 17. dxc6 {[%emt 0:05:54]} Qe7 {[%emt 0:07:18]} 18. Nxe5 {[%emt 0:11:32]} fxg3 {[%emt 0:00:40]} 19. fxg3 {[%emt 0:01:08]} Be6 {[%emt 0:04:43]} 20. Nd7 {[%emt 0:04:59]} 1-0

[Event "22nd ETCC Women 2019"]
[Site "Batumi"]
[Date "2019.10.24"]
[Round "1.22"]
[White "Frisk, Ellinor"]
[Black "Skripchenko, Almira"]
[Result "1/2-1/2"]
[ECO "C57"]
[WhiteElo "2227"]
[BlackElo "2403"]
[Annotator "NA"]
[PlyCount "81"]
[EventDate "2019.10.24"]
[EventType "team-tourn"]
[EventCountry "GEO"]
[SourceTitle "playchess.com"]
[Source "ChessBase"]
[SourceQuality "1"]
[WhiteTeam "Sweden"]
[BlackTeam "France"]
[WhiteTeamCountry "SWE"]
[BlackTeamCountry "FRA"]
[TimeControl "40/5400+30:1800+30"]

1. e4 {[%emt 0:00:00]} e5 {[%emt 0:01:24]} 2. Nf3 {[%emt 0:00:00]} Nc6 {[%emt 0:00:06]} 3. Bc4 {[%emt 0:00:00]} Nf6 {[%emt 0:02:14]} 4. Ng5 {[%emt 0:00:00]} d5 {[%emt 0:00:45]} 5. exd5 {[%emt 0:00:05]} b5 {[%emt 0:01:56]} 6. Bf1 {[%emt 0:04:22]} Nxd5 {[%emt 0:23:00]} 7. Bxb5 {[%emt 0:01:06]} Bb7 {[%emt 0:01:14]} 8. d4 {[%emt 0:05:43]} exd4 {[%emt 0:10:16]} 9. O-O {[%emt 0:04:54]} Qf6 {[%emt 0:09:07]} 10. Re1+ {[%emt 0:03:37]} Nde7 {[%emt 0:07:33]} 11. Qg4 {[%emt 0:11:29]} h6 {[%emt 0:09:47]} 12. Nf3 {[%emt 0:01:05]} Rd8 {[%emt 0:00:50]} 13. Na3 {[%emt 0:06:32]} Rd5 {[%emt 0:05:06]} 14. Bf4 {[%emt 0:09:04]} Kd8 {[%emt 0:06:18]} 15. Rad1 {[%emt 0:06:11]} g5 {[%emt 0:11:53]} 16. Be5 {[%emt 0:08:33]} Nxe5 {[%emt 0:01:00]} 17. Rxe5 {[%emt 0:00:31]} c6 {[%emt 0:00:39]} 18. Rxd5+ {[%emt 0:05:36]} Nxd5 {[%emt 0:00:09]} 19. Bc4 {[%emt 0:01:18]} Bxa3 {[%emt 0:01:21]} 20. bxa3 {[%emt 0:00:11]} Re8 {[%emt 0:03:17]} 21. Bxd5 {[%emt 0:12:16]} cxd5 {[%emt 0:00:07]} 22. Qxd4 {[%emt 0:01:04]} Qxd4 {[%emt 0:00:07]} 23. Nxd4 {[%emt 0:00:04]} Kc7 {[%emt 0:01:24]} 24. f3 {[%emt 0:00:51]} Ba6 {[%emt 0:01:16]} 25. Kf2 {[%emt 0:02:11]} Bc4 {[%emt 0:00:32]} 26. Re1 {[%emt 0:01:05]} Rxe1 {[%emt 0:00:38]} 27. Kxe1 {[%emt 0:00:01]} Bxa2 {[%emt 0:00:06]} 28. Nf5 {[%emt 0:03:20]} h5 {[%emt 0:00:48]} 29. Nh6 {[%emt 0:02:13]} d4 {[%emt 0:00:51]} 30. Nf5 {[%emt 0:01:55]} Kc6 {[%emt 0:00:28]} 31. Nxd4+ {[%emt 0:00:46]} Kc5 {[%emt 0:00:34]} 32. c3 {[%emt 0:03:08]} Kc4 {[%emt 0:00:40]} 33. Kd2 {[%emt 0:00:08]} Bb1 {[%emt 0:00:07]} 34. g3 {[%emt 0:01:45]} a6 {[%emt 0:00:20]} 35. h4 {[%emt 0:02:21]} gxh4 {[%emt 0:00:37]} 36. gxh4 {[%emt 0:00:01]} Bg6 {[%emt 0:00:07]} 37. f4 {[%emt 0:01:18]} Be4 {[%emt 0:00:29]} 38. Ke3 {[%emt 0:01:06]} Bb1 {[%emt 0:00:22]} 39. Kd2 {[%emt 0:00:06]} Be4 {[%emt 0:00:11]} 40. Ke3 {[%emt 0:00:00]} Bb1 {[%emt 0:00:00]} 41. Kd2 {[%emt 0:00:39]} 1/2-1/2

[Event "22nd ETCC Women 2019"]
[Site "Batumi"]
[Date "2019.10.24"]
[Round "1.23"]
[White "Navrotescu, Andreea-Cristiana"]
[Black "Cramling Bellon, Anna"]
[Result "1-0"]
[ECO "E34"]
[WhiteElo "2241"]
[BlackElo "2164"]
[Annotator "NA"]
[PlyCount "129"]
[EventDate "2019.10.24"]
[EventType "team-tourn"]
[EventCountry "GEO"]
[SourceTitle "playchess.com"]
[Source "ChessBase"]
[SourceQuality "1"]
[WhiteTeam "France"]
[BlackTeam "Sweden"]
[WhiteTeamCountry "FRA"]
[BlackTeamCountry "SWE"]
[TimeControl "40/5400+30:1800+30"]

1. d4 {[%emt 0:00:00]} Nf6 {[%emt 0:00:00]} 2. c4 {[%emt 0:00:00]} e6 {[%emt 0:00:00]} 3. Nc3 {[%emt 0:00:00]} Bb4 {[%emt 0:00:00]} 4. Qc2 {[%emt 0:00:00]} d5 {[%emt 0:00:02]} 5. cxd5 {[%emt 0:00:00]} Qxd5 {[%emt 0:00:14]} 6. Nf3 {[%emt 0:01:47]} Qf5 {[%emt 0:00:11]} 7. Qxf5 {[%emt 0:02:33]} exf5 {[%emt 0:00:08]} 8. a3 {[%emt 0:01:18]} Be7 {[%emt 0:02:30]} 9. g3 {[%emt 0:08:47]} c6 {[%emt 0:06:35]} 10. Bg2 {[%emt 0:02:07]} Be6 {[%emt 0:10:08]} 11. O-O {[%emt 0:07:39]} a5 {[%emt 0:08:16]} 12. Ne5 {[%emt 0:06:42]} O-O {[%emt 0:08:43]} 13. f3 {[%emt 0:13:47]} Rd8 {[%emt 0:10:57]} 14. Be3 {[%emt 0:03:07]} Nbd7 {[%emt 0:04:57]} 15. Nxd7 {[%emt 0:00:26]} Nxd7 {[%emt 0:09:00]} 16. Bf2 {[%emt 0:11:24]} Nb6 {[%emt 0:02:37]} 17. e4 {[%emt 0:00:27]} Nc4 {[%emt 0:01:41]} 18. Rfe1 {[%emt 0:05:26]} Bf8 {[%emt 0:19:02]} 19. Bf1 {[%emt 0:06:52]} Nd2 {[%emt 0:02:55]} 20. Be2 {[%emt 0:00:18]} fxe4 {[%emt 0:05:12]} 21. fxe4 {[%emt 0:00:30]} Bc4 {[%emt 0:04:36]} 22. Rad1 {[%emt 0:09:43]} Bxe2 {[%emt 0:00:06]} 23. Rxe2 {[%emt 0:00:18]} Nc4 {[%emt 0:00:56]} 24. a4 {[%emt 0:00:05]} Bb4 {[%emt 0:01:20]} 25. Na2 {[%emt 0:00:55]} Be7 {[%emt 0:01:02]} 26. b3 {[%emt 0:00:38]} Ne5 {[%emt 0:00:10]} 27. Kg2 {[%emt 0:00:30]} Ng4 {[%emt 0:00:48]} 28. Bg1 {[%emt 0:00:12]} c5 {[%emt 0:01:19]} 29. d5 {[%emt 0:03:01]} Ne5 {[%emt 0:00:11]} 30. Nc3 {[%emt 0:00:53]} b6 {[%emt 0:00:20]} 31. Nb5 {[%emt 0:01:00]} Bd6 {[%emt 0:00:10]} 32. h3 {[%emt 0:01:08]} h5 {[%emt 0:00:57]} 33. Bh2 {[%emt 0:02:54]} f6 {[%emt 0:00:15]} 34. g4 {[%emt 0:02:48]} hxg4 {[%emt 0:00:07]} 35. hxg4 {[%emt 0:00:02]} g5 {[%emt 0:01:20]} 36. Rf1 {[%emt 0:01:25]} Kg7 {[%emt 0:00:34]} 37. Ref2 {[%emt 0:01:52]} Nxg4 {[%emt 0:00:38]} 38. Bxd6 {[%emt 0:00:05]} Ne3+ {[%emt 0:00:26]} 39. Kg3 {[%emt 0:01:06]} Nxf1+ {[%emt 0:00:04]} 40. Rxf1 {[%emt 0:00:00]} Rd7 {[%emt 0:00:00]} 41. Nc7 {[%emt 0:13:04]} Rc8 {[%emt 0:09:30]} 42. Ne6+ {[%emt 0:05:46]} Kg8 {[%emt 0:02:57]} 43. Bc7 {[%emt 0:01:55]} Rcxc7 {[%emt 0:09:45]} 44. Nxc7 {[%emt 0:00:01]} Rxc7 {[%emt 0:00:05]} 45. Rxf6 {[%emt 0:00:04]} Re7 {[%emt 0:04:34]} 46. Kf3 {[%emt 0:00:38]} Kg7 {[%emt 0:01:57]} 47. Rxb6 {[%emt 0:03:34]} g4+ {[%emt 0:00:11]} 48. Kxg4 {[%emt 0:00:42]} Rxe4+ {[%emt 0:00:06]} 49. Kf5 {[%emt 0:00:04]} Re3 {[%emt 0:06:09]} 50. Rb5 {[%emt 0:02:22]} Kf7 {[%emt 0:00:28]} 51. Kf4 {[%emt 0:00:56]} Rc3 {[%emt 0:00:49]} 52. Ke5 {[%emt 0:00:13]} Ke7 {[%emt 0:00:27]} 53. Rb7+ {[%emt 0:00:41]} Ke8 {[%emt 0:00:34]} 54. Ke6 {[%emt 0:00:51]} Re3+ {[%emt 0:00:23]} 55. Kd6 {[%emt 0:00:07]} Rc3 {[%emt 0:00:24]} 56. Rb8+ {[%emt 0:00:45]} Kf7 {[%emt 0:00:01]} 57. Rb5 {[%emt 0:00:24]} c4 {[%emt 0:00:55]} 58. bxc4 {[%emt 0:00:05]} Rxc4 {[%emt 0:00:04]} 59. Rxa5 {[%emt 0:00:04]} Ke8 {[%emt 0:01:11]} 60. Ra8+ {[%emt 0:00:06]} Kf7 {[%emt 0:00:03]} 61. Kd7 {[%emt 0:00:26]} Rd4 {[%emt 0:00:57]} 62. d6 {[%emt 0:00:05]} Rc4 {[%emt 0:00:26]} 63. a5 {[%emt 0:00:11]} Rc5 {[%emt 0:00:33]} 64. a6 {[%emt 0:00:08]} Ra5 {[%emt 0:00:28]} 65. Kc6 {[%emt 0:00:16]} 1-0

[Event "22nd ETCC Women 2019"]
[Site "Batumi"]
[Date "2019.10.24"]
[Round "1.23"]
[White "Manova, Ivana"]
[Black "Velikic, Adela"]
[Result "0-1"]
[ECO "B80"]
[WhiteElo "1795"]
[BlackElo "2275"]
[Annotator "NA"]
[PlyCount "68"]
[EventDate "2019.10.24"]
[EventType "team-tourn"]
[EventCountry "GEO"]
[SourceTitle "playchess.com"]
[Source "ChessBase"]
[SourceQuality "1"]
[WhiteTeam "Macedonia"]
[BlackTeam "Serbia"]
[WhiteTeamCountry "MKD"]
[BlackTeamCountry "SRB"]
[TimeControl "40/5400+30:1800+30"]

1. e4 {[%emt 0:00:00]} c5 {[%emt 0:00:00]} 2. Nc3 {[%emt 0:00:00]} e6 {[%emt 0:00:00]} 3. Nf3 {[%emt 0:00:27]} d6 {[%emt 0:00:00]} 4. d4 {[%emt 0:03:04]} cxd4 {[%emt 0:00:00]} 5. Nxd4 {[%emt 0:08:18]} Nf6 {[%emt 0:00:05]} 6. Bb5+ {[%emt 0:05:10]} Nbd7 {[%emt 0:05:06]} 7. O-O {[%emt 0:02:42]} Be7 {[%emt 0:10:40]} 8. f4 {[%emt 0:06:58]} O-O {[%emt 0:16:24]} 9. Bxd7 {[%emt 0:06:42]} Qxd7 {[%emt 0:07:48]} 10. f5 {[%emt 0:12:34]} b6 {[%emt 0:19:37]} 11. Qd3 {[%emt 0:13:42]} Bb7 {[%emt 0:11:59]} 12. fxe6 {[%emt 0:13:23]} fxe6 {[%emt 0:00:07]} 13. Bd2 {[%emt 0:12:48]} d5 {[%emt 0:13:50]} 14. exd5 {[%emt 0:02:16]} exd5 {[%emt 0:02:12]} 15. Rae1 {[%emt 0:02:18]} Bc5 {[%emt 0:01:43]} 16. Kh1 {[%emt 0:01:01]} Ne4 {[%emt 0:01:27]} 17. Be3 {[%emt 0:02:18]} Rad8 {[%emt 0:04:05]} 18. Rxf8+ {[%emt 0:02:58]} Rxf8 {[%emt 0:00:07]} 19. Nxe4 {[%emt 0:00:50]} dxe4 {[%emt 0:00:07]} 20. Qd1 {[%emt 0:01:29]} Qf7 {[%emt 0:02:44]} 21. Qe2 {[%emt 0:00:43]} Qxa2 {[%emt 0:01:11]} 22. b3 {[%emt 0:00:43]} Ba6 {[%emt 0:00:52]} 23. Qg4 {[%emt 0:00:10]} Qa5 {[%emt 0:00:23]} 24. Rg1 Qc3 {[%emt 0:00:58]} 25. Qxe4 {[%emt 0:01:01]} Kh8 {[%emt 0:00:26]} 26. Rd1 {[%emt 0:00:45]} Bb7 {[%emt 0:00:36]} 27. Qd3 {[%emt 0:00:36]} Qxd3 {[%emt 0:00:16]} 28. Rxd3 {[%emt 0:00:30]} Rf1+ {[%emt 0:00:16]} 29. Bg1 {[%emt 0:00:03]} Be4 {[%emt 0:00:42]} 30. Rd2 {[%emt 0:00:21]} h6 {[%emt 0:00:20]} 31. c4 {[%emt 0:00:56]} Rb1 {[%emt 0:00:33]} 32. h3 {[%emt 0:00:33]} a5 {[%emt 0:00:42]} 33. Kh2 {[%emt 0:00:25]} Kh7 {[%emt 0:00:19]} 34. Be3 {[%emt 0:00:44]} Bd6+ {[%emt 0:00:28]} 0-1

[Event "22nd ETCC Women 2019"]
[Site "Batumi"]
[Date "2019.10.24"]
[Round "1.24"]
[White "Gajcin, Marina"]
[Black "Koskoska, Gabriela"]
[Result "1-0"]
[ECO "B11"]
[WhiteElo "2262"]
[BlackElo "2036"]
[Annotator "NA"]
[PlyCount "99"]
[EventDate "2019.10.24"]
[EventType "team-tourn"]
[EventCountry "GEO"]
[SourceTitle "playchess.com"]
[Source "ChessBase"]
[SourceQuality "1"]
[WhiteTeam "Serbia"]
[BlackTeam "Macedonia"]
[WhiteTeamCountry "SRB"]
[BlackTeamCountry "MKD"]
[TimeControl "40/5400+30:1800+30"]

1. e4 {[%emt 0:00:00]} c6 {[%emt 0:00:00]} 2. Nf3 {[%emt 0:00:00]} d5 {[%emt 0:00:08]} 3. Nc3 {[%emt 0:00:01]} Bg4 {[%emt 0:00:55]} 4. h3 {[%emt 0:00:17]} Bxf3 {[%emt 0:00:21]} 5. Qxf3 {[%emt 0:00:08]} e6 {[%emt 0:01:07]} 6. Be2 {[%emt 0:03:02]} Nd7 {[%emt 0:03:32]} 7. d4 {[%emt 0:02:23]} g6 {[%emt 0:05:22]} 8. Bf4 {[%emt 0:13:53]} Bg7 {[%emt 0:03:31]} 9. O-O-O {[%emt 0:06:33]} Ne7 {[%emt 0:06:32]} 10. h4 {[%emt 0:06:44]} h6 {[%emt 0:05:30]} 11. Qg3 {[%emt 0:11:43]} a6 {[%emt 0:15:05]} 12. h5 g5 {[%emt 0:09:59]} 13. Bc7 {[%emt 0:10:05]} Qc8 {[%emt 0:00:04]} 14. Bd6 {[%emt 0:04:13]} Qd8 {[%emt 0:03:09]} 15. Kb1 {[%emt 0:03:31]} Nc8 {[%emt 0:13:34]} 16. Bc7 {[%emt 0:06:02]} Qe7 {[%emt 0:02:45]} 17. f4 {[%emt 0:06:13]} O-O {[%emt 0:05:16]} 18. fxg5 Qxg5 19. Qh2 {[%emt 0:06:48]} b5 {[%emt 0:03:48]} 20. Bf4 {[%emt 0:05:52]} Qe7 {[%emt 0:00:17]} 21. exd5 {[%emt 0:01:12]} cxd5 {[%emt 0:03:30]} 22. Rhe1 {[%emt 0:00:06]} Nf6 {[%emt 0:06:20]} 23. Bf3 {[%emt 0:00:08]} Rd8 {[%emt 0:00:29]} 24. g4 {[%emt 0:00:57]} b4 {[%emt 0:00:24]} 25. Na4 {[%emt 0:01:03]} Nh7 {[%emt 0:00:41]} 26. Qg2 {[%emt 0:04:36]} Ng5 {[%emt 0:02:12]} 27. Rd3 {[%emt 0:01:31]} Qa7 {[%emt 0:02:46]} 28. Qd2 {[%emt 0:02:22]} Nxf3 {[%emt 0:04:19]} 29. Rxf3 {[%emt 0:00:01]} Qxd4 {[%emt 0:00:01]} 30. Rd3 {[%emt 0:00:19]} Qf6 {[%emt 0:00:10]} 31. g5 {[%emt 0:02:17]} Qf5 {[%emt 0:01:28]} 32. Rg3 e5 33. gxh6 {[%emt 0:01:37]} Qxf4 {[%emt 0:01:38]} 34. Rxg7+ {[%emt 0:01:02]} Kh8 {[%emt 0:00:53]} 35. Qxf4 {[%emt 0:00:28]} exf4 {[%emt 0:00:01]} 36. Rxf7 {[%emt 0:00:07]} Nd6 {[%emt 0:00:26]} 37. Rxf4 {[%emt 0:00:14]} Ne4 {[%emt 0:01:19]} 38. Kc1 {[%emt 0:00:44]} Rd6 {[%emt 0:00:21]} 39. Rd1 {[%emt 0:01:04]} Rad8 {[%emt 0:00:24]} 40. Rd4 {[%emt 0:00:00]} Kh7 {[%emt 0:00:00]} 41. Rxb4 {[%emt 0:09:25]} Kxh6 {[%emt 0:03:10]} 42. Rf5 {[%emt 0:02:18]} Ng3 {[%emt 0:03:09]} 43. Re5 {[%emt 0:00:21]} d4 {[%emt 0:01:39]} 44. Nc5 {[%emt 0:01:47]} Rc8 {[%emt 0:09:23]} 45. Re6+ {[%emt 0:03:21]} Rxe6 {[%emt 0:00:19]} 46. Nxe6 {[%emt 0:00:03]} d3 {[%emt 0:00:31]} 47. c3 {[%emt 0:01:00]} Rc6 {[%emt 0:07:33]} 48. Nf4 {[%emt 0:01:05]} Rd6 {[%emt 0:02:27]} 49. Rd4 {[%emt 0:01:58]} Ne2+ {[%emt 0:00:48]} 50. Nxe2 {[%emt 0:00:06]} 1-0

[Event "22nd ETCC Women 2019"]
[Site "Batumi"]
[Date "2019.10.24"]
[Round "1.24"]
[White "Bengtsson, Siv"]
[Black "Benmesbah, Natacha"]
[Result "0-1"]
[ECO "B34"]
[WhiteElo "2086"]
[BlackElo "2265"]
[Annotator "NA"]
[PlyCount "42"]
[EventDate "2019.10.24"]
[EventType "team-tourn"]
[EventCountry "GEO"]
[SourceTitle "playchess.com"]
[Source "ChessBase"]
[SourceQuality "1"]
[WhiteTeam "Sweden"]
[BlackTeam "France"]
[WhiteTeamCountry "SWE"]
[BlackTeamCountry "FRA"]
[TimeControl "40/5400+30:1800+30"]

1. e4 {[%emt 0:00:00]} c5 {[%emt 0:00:00]} 2. Nf3 {[%emt 0:00:00]} Nc6 {[%emt 0:00:00]} 3. d4 {[%emt 0:00:00]} cxd4 {[%emt 0:00:00]} 4. Nxd4 {[%emt 0:00:08]} Nf6 {[%emt 0:00:52]} 5. Nc3 {[%emt 0:01:12]} e5 {[%emt 0:00:41]} 6. Ndb5 {[%emt 0:02:00]} d6 {[%emt 0:03:42]} 7. Bg5 {[%emt 0:02:43]} a6 {[%emt 0:00:13]} 8. Bxf6 {[%emt 0:03:08]} gxf6 {[%emt 0:00:05]} 9. Na3 {[%emt 0:00:06]} f5 {[%emt 0:04:41]} 10. exf5 {[%emt 0:07:49]} Bxf5 {[%emt 0:00:43]} 11. Nd5 {[%emt 0:03:37]} Bg7 {[%emt 0:07:36]} 12. Nc4 {[%emt 0:10:49]} O-O {[%emt 0:11:28]} 13. Nde3 {[%emt 0:17:12]} Be6 {[%emt 0:04:12]} 14. Qxd6 {[%emt 0:09:26]} Qf6 {[%emt 0:08:15]} 15. Bd3 {[%emt 0:09:26]} Rfd8 {[%emt 0:22:08]} 16. Qc7 {[%emt 0:06:45]} Rd7 {[%emt 0:06:05]} 17. Qb6 {[%emt 0:00:16]} e4 {[%emt 0:03:04]} 18. Bxe4 {[%emt 0:06:26]} Bxc4 {[%emt 0:01:09]} 19. Bxc6 {[%emt 0:03:51]} Bb5 {[%emt 0:03:39]} 20. c3 {[%emt 0:07:24]} Qxc3+ {[%emt 0:01:05]} 21. bxc3 {[%emt 0:00:08]} Bxc3# 0-1

[Event "22nd ETCC Women 2019"]
[Site "Batumi"]
[Date "2019.10.24"]
[Round "1.25"]
[White "Hagarova, Zuzana"]
[Black "Koridze, Lile"]
[Result "0-1"]
[ECO "B23"]
[WhiteElo "2295"]
[BlackElo "1988"]
[Annotator "NA"]
[PlyCount "116"]
[EventDate "2019.10.24"]
[EventType "team-tourn"]
[EventCountry "GEO"]
[SourceTitle "playchess.com"]
[Source "ChessBase"]
[SourceQuality "1"]
[WhiteTeam "Slovakia"]
[BlackTeam "Georgia"]
[WhiteTeamCountry "SVK"]
[BlackTeamCountry "GEO"]
[TimeControl "40/5400+30:1800+30"]

1. e4 {[%emt 0:00:00]} c5 {[%emt 0:00:00]} 2. Nc3 {[%emt 0:00:00]} Nc6 {[%emt 0:00:00]} 3. f4 {[%emt 0:00:12]} e6 {[%emt 0:01:15]} 4. Nf3 {[%emt 0:02:00]} a6 {[%emt 0:00:24]} 5. Be2 {[%emt 0:09:15]} Be7 {[%emt 0:03:25]} 6. O-O {[%emt 0:02:44]} Nf6 {[%emt 0:06:17]} 7. Kh1 {[%emt 0:07:53]} b5 {[%emt 0:04:42]} 8. e5 {[%emt 0:03:09]} Ng8 {[%emt 0:01:22]} 9. d4 {[%emt 0:06:04]} cxd4 {[%emt 0:02:19]} 10. Nxd4 {[%emt 0:00:26]} Bb7 {[%emt 0:01:08]} 11. Bf3 {[%emt 0:02:55]} Nh6 {[%emt 0:03:46]} 12. Be3 {[%emt 0:08:41]} Qc7 {[%emt 0:06:05]} 13. Nb3 {[%emt 0:09:46]} Nf5 {[%emt 0:11:59]} 14. Bf2 {[%emt 0:01:40]} O-O {[%emt 0:04:50]} 15. Nc5 {[%emt 0:08:42]} Bc8 {[%emt 0:20:43]} 16. N3e4 {[%emt 0:01:29]} Rd8 {[%emt 0:03:17]} 17. g4 {[%emt 0:05:13]} d5 {[%emt 0:00:37]} 18. exd6 {[%emt 0:10:06]} Nxd6 {[%emt 0:00:20]} 19. Qe2 {[%emt 0:00:52]} Rb8 {[%emt 0:01:55]} 20. c3 {[%emt 0:08:24]} Na5 {[%emt 0:05:38]} 21. Rad1 {[%emt 0:04:23]} Nac4 {[%emt 0:02:31]} 22. Bg3 {[%emt 0:02:04]} Nxe4 {[%emt 0:02:15]} 23. Nxe4 {[%emt 0:00:15]} Bb7 {[%emt 0:02:47]} 24. f5 {[%emt 0:01:04]} e5 {[%emt 0:00:08]} 25. f6 {[%emt 0:03:38]} Bxe4 {[%emt 0:00:13]} 26. Bxe4 {[%emt 0:00:53]} Rxd1 {[%emt 0:00:18]} 27. Rxd1 {[%emt 0:00:21]} Bxf6 {[%emt 0:00:05]} 28. Qf2 {[%emt 0:01:08]} Rd8 {[%emt 0:00:51]} 29. Rf1 {[%emt 0:00:25]} Nd2 {[%emt 0:02:05]} 30. Re1 {[%emt 0:00:33]} Nxe4 {[%emt 0:00:13]} 31. Rxe4 {[%emt 0:00:03]} Qc6 {[%emt 0:01:11]} 32. Qe2 {[%emt 0:00:19]} Rd1+ {[%emt 0:00:36]} 33. Qxd1 {[%emt 0:00:30]} Qxe4+ {[%emt 0:00:05]} 34. Kg1 {[%emt 0:00:05]} h6 {[%emt 0:00:19]} 35. Bf2 {[%emt 0:00:46]} Bg5 {[%emt 0:00:27]} 36. Qd7 {[%emt 0:01:15]} Qf4 {[%emt 0:02:45]} 37. h4 {[%emt 0:00:24]} Bf6 {[%emt 0:01:11]} 38. Kg2 {[%emt 0:00:47]} Qe4+ {[%emt 0:01:04]} 39. Kg1 {[%emt 0:00:31]} Qf3 {[%emt 0:01:15]} 40. Qc8+ {[%emt 0:00:00]} Kh7 {[%emt 0:00:00]} 41. h5 {[%emt 0:09:03]} e4 {[%emt 0:04:55]} 42. Bd4 {[%emt 0:04:44]} Bh4 {[%emt 0:10:15]} 43. Qf5+ {[%emt 0:04:59]} Qxf5 {[%emt 0:00:23]} 44. gxf5 {[%emt 0:00:03]} g6 {[%emt 0:00:24]} 45. fxg6+ {[%emt 0:07:04]} fxg6 {[%emt 0:00:06]} 46. b3 {[%emt 0:02:53]} gxh5 {[%emt 0:00:41]} 47. c4 {[%emt 0:01:34]} bxc4 {[%emt 0:00:22]} 48. bxc4 {[%emt 0:00:04]} Kg6 {[%emt 0:00:03]} 49. c5 {[%emt 0:03:09]} Kf5 {[%emt 0:00:16]} 50. c6 {[%emt 0:00:08]} Bg3 {[%emt 0:01:31]} 51. Kg2 {[%emt 0:01:03]} Bc7 {[%emt 0:00:13]} 52. Bf2 {[%emt 0:01:18]} Ke6 {[%emt 0:00:12]} 53. Be3 {[%emt 0:00:43]} Kd5 {[%emt 0:00:20]} 54. Bxh6 {[%emt 0:00:38]} Kxc6 {[%emt 0:00:05]} 55. Bg5 {[%emt 0:00:28]} Kd5 {[%emt 0:00:22]} 56. Kf2 {[%emt 0:00:20]} Bb6+ {[%emt 0:00:57]} 57. Ke2 {[%emt 0:00:06]} Kc4 {[%emt 0:00:07]} 58. Bf6 {[%emt 0:00:29]} Bd4 {[%emt 0:00:06]} 0-1

[Event "22nd ETCC Women 2019"]
[Site "Batumi"]
[Date "2019.10.24"]
[Round "1.26"]
[White "Lazarne Vajda, Szidonia"]
[Black "Franciskovic, Borka"]
[Result "1/2-1/2"]
[ECO "E42"]
[WhiteElo "2353"]
[BlackElo "2262"]
[Annotator "NA"]
[PlyCount "88"]
[EventDate "2019.10.24"]
[EventType "team-tourn"]
[EventCountry "GEO"]
[SourceTitle "playchess.com"]
[Source "ChessBase"]
[SourceQuality "1"]
[WhiteTeam "Hungary"]
[BlackTeam "Croatia"]
[WhiteTeamCountry "HUN"]
[BlackTeamCountry "CRO"]
[TimeControl "40/5400+30:1800+30"]

1. d4 Nf6 2. c4 e6 3. Nc3 Bb4 4. e3 c5 5. Nge2 cxd4 6. exd4 d5 7. c5 O-O 8. a3 Ba5 9. b4 Bc7 10. g3 e5 11. Bg2 exd4 12. Nxd4 a5 13. Be3 Bg4 14. f3 Re8 15. Kf2 axb4 16. axb4 Rxa1 17. Qxa1 Nbd7 18. Rd1 Ne5 19. Bg5 Be6 20. Kg1 h6 21. Bxf6 Qxf6 22. Ncb5 Bb8 23. Nxe6 fxe6 24. f4 Nc6 25. Qxf6 gxf6 26. f5 exf5 27. Bxd5+ Kh7 28. Bxc6 bxc6 29. Rd7+ Kg6 30. Nd4 Rc8 31. Ne6 f4 32. gxf4 Kf5 33. Rd8 Rxd8 34. Nxd8 Bxf4 35. Nxc6 Ke6 36. Kg2 Kd5 37. Ne7+ Ke6 38. Nc8 Kd5 39. Nb6+ Kc6 40. h3 Bd2 41. Nc8 Bxb4 42. Ne7+ Kxc5 43. Ng8 Kd5 44. Nxf6+ Ke6 1/2-1/2